{"text_format":"1","workbook":"xlsx","n_sheets":1,"sheets":["Checklist"],"not_rendered":{"charts":0,"images":0,"macros":0,"external_links":0,"defined_names":7,"comments":0,"pivot_tables":0},"unopened":[],"bounds":{"document_bytes":16777216,"sheet_cells":100000,"rows_first":2000,"rows_last":500,"rows_between":2000,"halvings":0,"cell_chars":16384,"cell_head_chars":4096},"cells_cut":0,"cells_raw":0,"read":"whole","date_system":"1900"}

{"sheet":"Checklist","index":0,"n_rows":295,"n_cols":249,"rows_kept":295,"cut":false,"hidden":false,"merged":[[95,4,95,10],[157,3,157,4],[70,4,70,10],[71,4,71,10],[83,4,83,10],[84,4,84,10],[79,4,79,10],[87,2,87,9],[89,2,89,9],[90,3,91,8],[99,3,99,9],[92,2,92,9],[94,3,94,7],[93,3,93,7],[119,1,122,11],[156,9,156,11],[282,4,282,8],[100,3,100,9],[180,0,180,10],[158,3,158,4],[126,2,126,10],[181,2,181,4],[182,3,182,4],[184,2,184,7],[146,1,146,12],[148,9,148,11],[129,2,129,4],[131,2,131,9],[115,1,115,12],[124,2,124,10],[139,1,142,11],[109,1,112,11],[283,4,283,8],[192,3,192,4],[42,4,42,5],[24,2,24,12],[45,4,45,5],[38,3,38,8],[81,4,81,10],[82,4,82,10],[77,2,77,10],[72,3,72,10],[73,3,73,4],[58,2,59,10],[78,4,78,10],[80,4,80,10],[66,2,66,10],[48,4,48,5],[16,2,17,9],[11,1,11,2],[2,1,2,11],[4,3,4,6],[4,9,4,11],[6,3,6,11],[7,3,8,11],[294,5,294,6],[256,3,257,8],[286,4,286,8],[287,4,287,8],[204,1,204,9],[277,4,277,8],[278,4,278,8],[255,2,255,10],[237,2,237,11],[276,4,276,8],[252,3,253,8],[274,4,274,8],[275,4,275,8],[285,4,285,8],[225,3,225,4],[284,4,284,8],[64,1,64,4],[67,3,67,10],[65,1,65,9],[69,4,69,10],[68,4,68,10],[157,9,157,11],[158,9,158,11],[159,9,159,11],[160,9,160,11],[161,9,161,11],[162,9,162,11],[174,1,177,11],[194,9,194,11],[198,1,201,11],[247,6,250,10],[258,6,261,10],[265,1,268,11],[207,9,207,11],[209,9,209,11],[218,9,218,11],[230,1,233,11],[240,6,243,10],[224,3,224,4]]}
[]
[null,"LBRUT Sustainable Construction Checklist - June 2020"]
[null,"This document forms part of the Sustainable Construction Checklist SPD.  This document must be filled out as part of the planning application for the following developments: all residential development providing one or more new residential units (including conversions leading to one or more new units), and all other forms of development providing 100sqm or more of non-residential floor space. Developments including new non-residential development of less than 100sqm floor space, extensions less than 100sqm, and other conversions are strongly encouraged to comply with this checklist. Where further information is requested, please either fill in the relevant section, or refer to the document where this information may be found in detail, e.g. Flood Risk Assessment or similar.  Further guidance on completing the Checklist may be found in the Justification and Guidance section of this SPD."]
[]
[null,"Property Name (if relevant):",null,"50 Station Road, Barnes",null,null,null,null,"Application No. (if known):",null,null,null,null,null,null,null,null,null,"Please Select"]
[null,null,null,null,null,null,null,null,null,null,null,null,null,null,null,null,null,null,"Good",0]
[null,"Address (include. postcode)",null,"50 Station Road, Barnes, SW13 0LP",null,null,null,null,null,null,null,null,null,null,null,null,null,null,"Very Good",4]
[null,"Completed by:",null,"Ecolytik with input from applicant team",null,null,null,null,null,null,null,null,null,null,null,null,null,null,"Excellent",8]
[null,null,null,null,null,null,null,null,null,null,null,null,null,null,null,null,null,null,"Outstanding",16]
[]
[null,"For Non-Residential",null,null,null,null,null,"For Residential",null,null,null,null,null,null,null,null,null,null,"Please Select:"]
[null,"Size of development (m2)",null,0,null,null,null,"Number of dwellings",1,null,null,null,null,null,null,null,null,null,true]
[null,null,null,null,null,null,null,null,null,null,null,null,null,null,null,null,null,null,false]
[null,1,"MINIMUM COMPLIANCE (RESIDENTIAL AND NON-RESIDENTIAL)"]
[]
[null,"Energy Assessment"]
[null,null,"Has an energy assessment been submitted that demonstrates the expected energy and carbon dioxide emissions saving from energy efficiency and renewable energy measures, including the feasibility of CHP/CCHP and community heating systems? If yes, please select TRUE. ",null,null,null,null,null,null,null,null,true]
[]
[]
[null,"Carbon Dioxide emissions reduction "]
[null,null,"What is the on site carbon dioxide emissions reduction against a Building Regulations Part L (2013) baseline",null,null,null,null,null,null,null,null,64,"%"]
[null,null,"Policy LP 22 B. and Draft London Plan Policy 9.2.5  require a 35% onsite reduction in CO2 emissions beyond Building Regulations 2013."]
[]
[null,null,"What is the percentage reduction from efficiency measures alone",null,null,null,null,null,null,null,null,17,"%"]
[null,null,"Policy LP 22 C. and Draft London Plan Policy 9.2.6  require a 10% onsite reduction in CO2 emissions\n beyond Building Regulations 2013 from efficiency measures for residential and 15% for non-residential."]
[]
[null,null,"Percentage of total site CO2 emissions saved through renewable energy installation?",null,null,null,null,null,null,null,null,47,"%"]
[]
[null,null,"What is the total remaining carbon to be offset",null,null,null,null,null,null,null,null,0.5,"Tonne"]
[null,null,"Policy LP 22 B. and Draft London Plan Policy 9.2.4 require Major developments to achieve Zero Carbon after offsetting."]
[]
[null,null,"Are remaining emissions going to be offset through offset fund payment in accordance with current guidelines issued for the cost per tonne of CO2? ",null,null,null,null,null,null,null,null,false]
[]
[null,null,"What is the total predicted cost of offset?",null,null,null,null,null,null,null,null,null,"£"]
[null,null,"The London Plan sets this as £95/tonne per year over 30 years, this should be updated based on As Build calculations. "]
[]
[null,"1A","MINIMUM POLICY COMPLIANCE (NON-RESIDENTIAL AND DOMESTIC REFURBISHMENT)"]
[]
[null,null,null,"Please check the Guidance Section of this SPD for the policy requirements"]
[]
[null,"Environmental Rating of development:"]
[null,"Non-Residential new-build (100sqm or more)"]
[null,null,"BREEAM Level",null,"Please Select",null,null,"Have you attached a pre-assessment to support this?",null,null,null,null,null,null,false,null,{"$f":"IF(O43=TRUE,VLOOKUP(E43,$S$6:$T$9,2,FALSE),O43)","v":false}]
[null,"Excellent required under Policy LP22 A 3"]
[null,"Extensions and conversions for residential dwellings"]
[null,null,"BREEAM Domestic Refurbishment",null,"Please Select",null,null,"Have you attached a pre-assessment to support this?",null,null,null,null,null,null,false,null,{"$f":"IF(O46=TRUE,VLOOKUP(E46,$S$6:$T$9,2,FALSE),O46)","v":false}]
[null,"Excellent required under Policy LP22 A 4"]
[null,"Extensions and conversions for non-residential buildings"]
[null,null,"BREEAM Level",null,"Please Select",null,null,"Have you attached a pre-assessment to support this?",null,null,null,null,null,null,false,null,{"$f":"IF(O49=TRUE,VLOOKUP(E49,$S$6:$T$9,2,FALSE),O49)","v":false}]
[null,"Excellent required under  Policy LP 22"]
[]
[]
[null,null,"Score awarded for Environmental Rating:",null,null,null,null,null,null,null,null,"Subtotal",{"$f":"SUM(Q43:Q49)","v":0}]
[null,null,"BREEAM:","Good = 0, Very Good = 4, Excellent = 8, Outstanding = 16"]
[]
[null,"1B","MINIMUM POLICY COMPLIANCE (RESIDENTIAL)"]
[null,null,null,null,null,null,null,null,null,null,null,"Score"]
[null,"Water Usage "]
[null,null,"Internal water usage after gray/rainwater systems limited to 105 litres person per day. (Excluding an allowance  5 litres per person per day for external water consumption). Calculations using the water efficiency calculator for new dwellings have been submitted. "]
[null,null,null,null,null,null,null,null,null,null,null,1,null,null,true,null,{"$f":"IF(O60=TRUE,L60)","v":1}]
[null,null,"110l/p/d Required for new dwellings under Policy LP22 A 2 105l/p/d required under Draft London Plan Policy SI5"]
[null,null,null,null,null,null,null,null,null,null,null,"Subtotal",{"$f":"SUM(Q60)","v":1}]
[]
[]
[null,"2. ENERGY USE AND POLLUTION"]
[null,"2.1  Need for Cooling ",null,null,null,null,null,null,null,null,null,"Score"]
[null,"a.","How does the development incorporate cooling measures? Tick all that apply: "]
[null,null,null,"Energy efficient design incorporating specific heat demand to less than or equal to 15 kWh/sqm",null,null,null,null,null,null,null,6,null,null,false,null,{"$f":"IF(O68=TRUE,L68)","v":false}]
[null,null,null,null,"Reduce heat entering a building through providing/improving insulation and living roofs and walls",null,null,null,null,null,null,2,null,null,true,null,2]
[null,null,null,null,"Reduce heat entering a building through shading",null,null,null,null,null,null,3,null,null,true,null,3]
[null,null,null,null,"Exposed thermal mass and high ceilings",null,null,null,null,null,null,4,null,null,true,null,4]
[null,null,null,null,"Passive ventilation",null,null,null,null,null,null,3,null,null,true,null,3]
[null,null,null,"Mechanical ventilation with heat recovery",null,null,null,null,null,null,null,1,null,null,true,null,1]
[null,null,null,"Active cooling systems, i.e. Air Conditioning Unit",null,null,null,null,null,null,null,0,null,null,false,null,false]
[null,null,"See Draft London Plan SI4"]
[]
[null,"2.2 Heat Generation"]
[null,"b.","How have the heating and cooling systems, with preference to the heating system hierarchy, been selected (defined in London Plan policy SI3)  Tick all heating and cooling systems that will be used in the development:",null,null,null,null,null,null,null,null,"Score"]
[null,null,null,null,"Connection to existing heating or cooling networks powered by renewable energy",null,null,null,null,null,null,6,null,null,false,null,{"$f":"IF(O79=TRUE,L79)","v":false}]
[null,null,null,null,"Connection to existing heating or cooling networks powered by gas or electricity",null,null,null,null,null,null,5,null,null,false,null,false]
[null,null,null,null,"Site wide CHP network powered by renewable energy",null,null,null,null,null,null,4,null,null,false,null,false]
[null,null,null,null,"Site wide CHP network powered by gas",null,null,null,null,null,null,3,null,null,false,null,false]
[null,null,null,null,"Communal heating and cooling powered by renewable energy",null,null,null,null,null,null,2,null,null,true,null,2]
[null,null,null,null,"Communal heating and cooling powered by gas or electricity",null,null,null,null,null,null,1,null,null,false,null,false]
[null,null,null,null,"Individual heating and cooling",null,null,null,null,null,null,0,null,null,false,null,false]
[null,null,"See Draft London Plan SI3"]
[null,"2.3 Pollution: Air, Noise and Light ",null,null,null,null,null,null,null,null,null,null,null,null,null,null,null,null,null,null,null,null,null,null,null,null,null,null,null,null,null,null,"1.2 Pollution: Air, Water and Noise - London Air Quality Strategy, London Plan Policy 4A.17, 4A.20, 4A.29",null,null,null,null,null,null,null,"1.2 Pollution: Air, Water and Noise - London Air Quality Strategy, London Plan Policy 4A.17, 4A.20, 4A.29",null,null,null,null,null,null,null,"1.2 Pollution: Air, Water and Noise - London Air Quality Strategy, London Plan Policy 4A.17, 4A.20, 4A.29",null,null,null,null,null,null,null,"1.2 Pollution: Air, Water and Noise - London Air Quality Strategy, London Plan Policy 4A.17, 4A.20, 4A.29",null,null,null,null,null,null,null,"1.2 Pollution: Air, Water and Noise - London Air Quality Strategy, London Plan Policy 4A.17, 4A.20, 4A.29",null,null,null,null,null,null,null,"1.2 Pollution: Air, Water and Noise - London Air Quality Strategy, London Plan Policy 4A.17, 4A.20, 4A.29",null,null,null,null,null,null,null,"1.2 Pollution: Air, Water and Noise - London Air Quality Strategy, London Plan Policy 4A.17, 4A.20, 4A.29",null,null,null,null,null,null,null,"1.2 Pollution: Air, Water and Noise - London Air Quality Strategy, London Plan Policy 4A.17, 4A.20, 4A.29",null,null,null,null,null,null,null,"1.2 Pollution: Air, Water and Noise - London Air Quality Strategy, London Plan Policy 4A.17, 4A.20, 4A.29",null,null,null,null,null,null,null,"1.2 Pollution: Air, Water and Noise - London Air Quality Strategy, London Plan Policy 4A.17, 4A.20, 4A.29",null,null,null,null,null,null,null,"1.2 Pollution: Air, Water and Noise - London Air Quality Strategy, London Plan Policy 4A.17, 4A.20, 4A.29",null,null,null,null,null,null,null,"1.2 Pollution: Air, Water and Noise - London Air Quality Strategy, London Plan Policy 4A.17, 4A.20, 4A.29",null,null,null,null,null,null,null,"1.2 Pollution: Air, Water and Noise - London Air Quality Strategy, London Plan Policy 4A.17, 4A.20, 4A.29",null,null,null,null,null,null,null,"1.2 Pollution: Air, Water and Noise - London Air Quality Strategy, London Plan Policy 4A.17, 4A.20, 4A.29",null,null,null,null,null,null,null,"1.2 Pollution: Air, Water and Noise - London Air Quality Strategy, London Plan Policy 4A.17, 4A.20, 4A.29",null,null,null,null,null,null,null,"1.2 Pollution: Air, Water and Noise - London Air Quality Strategy, London Plan Policy 4A.17, 4A.20, 4A.29",null,null,null,null,null,null,null,"1.2 Pollution: Air, Water and Noise - London Air Quality Strategy, London Plan Policy 4A.17, 4A.20, 4A.29",null,null,null,null,null,null,null,"1.2 Pollution: Air, Water and Noise - London Air Quality Strategy, London Plan Policy 4A.17, 4A.20, 4A.29",null,null,null,null,null,null,null,"1.2 Pollution: Air, Water and Noise - London Air Quality Strategy, London Plan Policy 4A.17, 4A.20, 4A.29",null,null,null,null,null,null,null,"1.2 Pollution: Air, Water and Noise - London Air Quality Strategy, London Plan Policy 4A.17, 4A.20, 4A.29",null,null,null,null,null,null,null,"1.2 Pollution: Air, Water and Noise - London Air Quality Strategy, London Plan Policy 4A.17, 4A.20, 4A.29",null,null,null,null,null,null,null,"1.2 Pollution: Air, Water and Noise - London Air Quality Strategy, London Plan Policy 4A.17, 4A.20, 4A.29",null,null,null,null,null,null,null,"1.2 Pollution: Air, Water and Noise - London Air Quality Strategy, London Plan Policy 4A.17, 4A.20, 4A.29",null,null,null,null,null,null,null,"1.2 Pollution: Air, Water and Noise - London Air Quality Strategy, London Plan Policy 4A.17, 4A.20, 4A.29",null,null,null,null,null,null,null,"1.2 Pollution: Air, Water and Noise - London Air Quality Strategy, London Plan Policy 4A.17, 4A.20, 4A.29",null,null,null,null,null,null,null,"1.2 Pollution: Air, Water and Noise - London Air Quality Strategy, London Plan Policy 4A.17, 4A.20, 4A.29",null,null,null,null,null,null,null,"1.2 Pollution: Air, Water and Noise - London Air Quality Strategy, London Plan Policy 4A.17, 4A.20, 4A.29",null,null,null,null,null,null,null,"1.2 Pollution: Air, Water and Noise - London Air Quality Strategy, London Plan Policy 4A.17, 4A.20, 4A.29"]
[null,"a.","Does the development plan to implement reduction strategies for dust emissions from construction sites?",null,null,null,null,null,null,null,null,2,null,null,true,null,{"$f":"IF(O88=TRUE,L88)","v":2}]
[]
[null,"b.","Does the development plan to include a biomass boiler?",null,null,null,null,null,null,null,null,null,null,null,false]
[null,null,null,"If yes, please refer to the biomass guidelines for the Borough of Richmond, please see guidance for supplementary information.  If the proposed boiler is of a qualifying size, you may need to complete the information request form found on the Richmond website."]
[]
[null,"c.","Has an air quality impact assessment been provided ",null,null,null,null,null,null,null,null,null,null,null,false]
[null,null,null,"If yes, has 'Emissions Neutral' been achieved",null,null,null,null,null,null,null,1,null,null,true,null,{"$f":"IF(O94=TRUE,L94)","v":1}]
[null,null,null,"If yes, have occupants of new development been protected from existing pollution",null,null,null,null,null,null,null,1,null,null,true,null,{"$f":"IF(O95=TRUE,L95)","v":1}]
[null,null,null,null,"If no to any of the above are there any sensitive receptors as defined in Policy LP 10 present?",null,null,null,null,null,null,-1,null,null,false,null,{"$f":"IF(O96=TRUE,L96)","v":false}]
[null,null,"see Policy LP 10"]
[]
[null,"d.","Please tick only one option below"]
[null,null,null,"Has the development taken measures to reduce existing noise and enhance the existing soundscape of the site?",null,null,null,null,null,null,null,3,null,null,true,null,{"$f":"IF(O100=TRUE,L100)","v":3}]
[null,null,null,"Has the development taken care to not create any new noise generation/transmission issues in its intended operation?",null,null,null,null,null,null,null,1,null,null,true,null,{"$f":"IF(O101=TRUE,L101)","v":1}]
[null,null,"see Policy LP 10"]
[]
[null,"e.","Has the development taken measures to reduce light pollution impacts on character, residential amenity and biodiversity?",null,null,null,null,null,null,null,null,3,null,null,true,null,{"$f":"IF(O104=TRUE,L104)","v":3}]
[null,null,"see Policy LP 10"]
[null,"f.","Have you attached a Lighting Pollution Report? ",null,null,null,null,null,null,null,null,"- "]
[]
[null,null,null,null,null,null,null,null,null,null,null,"Subtotal",{"$f":"SUM(Q68:Q104)","v":26}]
[null,"Please give any additional relevant comments to the Energy Use and Pollution Section below"]
[null,"Connection to CHP is given higher priority in this checklist but it is generally no longer supported by local authorities and the GLA. The use of renewable technologies is prioritised in light of the new carbon factors of Part L 2021 and the expected decarbonisation of the grid, as well as the new London Plan. The development plans to implement Air Source Heat Pumps which is the most appropriate technology for the site."]
[]
[]
[]
[]
[null,"3. TRANSPORT"]
[null,"3.1 Provision for the safe efficient and sustainable movement of people and goods"]
[null,"a.","Does your development provide opportunities for occupants to use innovative travel technologies?",null,null,null,null,null,null,null,null,null,null,null,true]
[]
[null,"Please explain:"]
[null,"Electric vehicle charging point will be provided that would encourage the update of zero emissions electric vehicles. "]
[]
[]
[]
[null,null,null,null,null,null,null,null,null,null,null,"Score"]
[null,"b.","Does your development provide for 100% active provision for electric vehicle charging point(s) and have you successfully demonstrated that it would be able to operate satisfactorily in the future expectation of all vehicles being electrically powered? ",null,null,null,null,null,null,null,null,2,null,null,true,null,{"$f":"IF(O125=TRUE,L125)","v":2}]
[]
[null,"c.","For major developments ONLY: Has a Transport Assessment been produced for your development based on TfL's Best Practice Guidance?"]
[null,null,null,"If you have provided a Transport Assessment as part of your planning application, please tick here and move to Section 3 of this Checklist.",null,null,null,null,null,null,null,5,null,null,"Please Select:",null,{"$f":"IF(O128=TRUE,L128)","v":false}]
[null,null,"See policy LP44"]
[null,"d.","For smaller developments ONLY: Have you provided a Transport Statement? ",null,null,null,null,null,null,null,null,5,null,null,false,null,{"$f":"IF(O130=TRUE,L130)","v":false}]
[]
[null,"e.","Does your development provide cycle storage? (Standard space requirements are set out in the Council's Parking Standards - Local Plan Appendix 3)",null,null,null,null,null,null,null,null,2,null,null,true,null,{"$f":"IF(O132=TRUE,L132)","v":2}]
[null,null,null,"If so, for how many bicycles?",null,null,null,null,null,null,null,2]
[null,null,null,"Is this shown on the site plans?",null,null,null,null,null,null,null,null,null,null,true,null,{"$f":"IF(O134=TRUE,L134)","v":0}]
[null,null,"See Local Plan Appendix 3"]
[null,"f.","Will the development create or improve links with local and wider transport networks? If yes, please provide details. ",null,null,null,null,null,null,null,null,2,null,null,false,null,{"$f":"IF(O136=TRUE,L136)","v":false}]
[]
[null,null,null,null,null,null,null,null,null,null,null,"Subtotal",{"$f":"SUM(Q116:Q136)","v":4}]
[null,"Please give any additional relevant comments to the Transport Section below"]
[]
[]
[]
[]
[]
[]
[null,4,"BIODIVERSITY"]
[null,"4.1 Minimising the threat to biodiversity from new buildings, lighting, hard surfacing and people"]
[null,"a.","Does your development involve the loss of an ecological feature or habitat, including a loss of garden or other green space? (Indicate if yes)",null,null,null,null,null,null,null,null,-2,null,null,false,null,{"$f":"IF(O148=TRUE,L148)","v":false}]
[null,null,null,"If so, please state how much in sqm?",null,null,null,null,null,81,null,null,"sqm"]
[]
[null,"b.","Does your development involve the removal of any tree(s)? (Indicate if yes)",null,null,null,null,null,null,null,null,null,null,null,true,null,{"$f":"IF(O151=TRUE,L151)","v":0}]
[null,null,null,"If so, has a tree report been provided in support of your application? (Indicate if yes)",null,null,null,null,null,null,null,null,null,null,true,null,{"$f":"IF(O152=TRUE,L152)","v":0}]
[]
[null,"c.","Does your development plan to add (and not remove) any tree(s) on site? (Indicate if yes)",null,null,null,null,null,null,null,null,null,null,null,false]
[]
[null,"d.","Please indicate which features and/or habitats that your development will incorporate to improve on site biodiversity:"]
[null,null,null,"Pond, reedbed or extensive native planting",null,6,null,"Area provided:",null,null,null,null,"sqm",null,false,null,{"$f":"IF(O157=TRUE,F157)","v":false}]
[null,null,null,"An extensive green roof",null,5,null,"Area provided:",null,30,null,null,"sqm",null,true,null,5]
[null,null,null,"An intensive green roof",null,4,null,"Area provided:",null,null,null,null,"sqm",null,false,null,false]
[null,null,null,"Garden space",null,4,null,"Area provided:",null,24.5,null,null,"sqm",null,true,null,4]
[null,null,null,"Additional native and/or wildlife friendly planting to peripheral areas",null,3,null,"Area provided:",null,3.2,null,null,"sqm",null,true,null,3]
[null,null,null,"Additional planting to peripheral areas",null,2,null,"Area provided:",null,null,null,null,"sqm",null,false,null,false]
[null,null,null,"A living wall",null,2,null,"Area provided:",null,null,null,null,"sqm",null,false,null,false]
[null,null,null,"Bat boxes",null,0.5,null,null,null,null,null,null,null,null,true,null,0.5]
[null,null,null,"Bird boxes",null,0.5,null,null,null,null,null,null,null,null,true,null,0.5]
[null,null,null,"Swift boxes",null,0.5,null,null,null,null,null,null,null,null,false,null,false]
[null,null,null,"Other",null,0.5,null,null,null,null,null,null,null,null,false,null,false]
[]
[]
[]
[null,"e.","Does your development use at least 70% of available roof plate as green/brown roof",null,null,null,null,null,null,null,null,1,null,null,false,null,false]
[null,null,"Policy LP 17 requires 70%"]
[null,null,null,null,null,null,null,null,null,null,null,"Subtotal",{"$f":"SUM(Q148:Q167)","v":13}]
[null,"Please give any additional relevant comments to the Biodiversity Section below"]
[]
[]
[]
[]
[]
[null,5,"FLOODING AND DRAINAGE"]
["5.1 Mitigating the risks of flooding and other impacts of climate change in the borough "]
[null,"a.","Is your site located in a high flood risk zone (Zone 3)? (Indicate if yes)",null,null,null,null,null,null,null,null,-2,null,null,true,null,{"$f":"IF(O182=TRUE,L182)","v":-2}]
[null,null,null,"Have you submitted a Flood Risk Assessment? (Indicate if yes)",null,null,null,null,null,null,null,null,null,null,true]
[]
[null,"b.","Which of the following measures of the drainage hierarchy are incorporated onto your site? (tick all that apply)"]
[null,null,null,"Store rainwater for later use",null,null,null,null,null,null,null,5,null,null,true,null,{"$f":"IF(O186=TRUE,L186)","v":5}]
[null,null,null,"Use of infiltration techniques such as porous surfacing materials to allow drainage on-site",null,null,null,null,null,null,null,3,null,null,false,null,false]
[null,null,null,"Attenuate rainwater in ponds or open water features",null,null,null,null,null,null,null,4,null,null,false,null,false]
[null,null,null,"Store rainwater in tanks for gradual release to a watercourse",null,null,null,null,null,null,null,3,null,null,false,null,false]
[null,null,null,"Discharge rainwater directly to watercourse",null,null,null,null,null,null,null,2,null,null,false,null,false]
[null,null,null,"Discharge rainwater to surface water drain",null,null,null,null,null,null,null,1,null,null,true,null,1]
[null,null,null,"Discharge rainwater to combined sewer",null,null,null,null,null,null,null,0,null,null,false,null,false]
[null,null,null,"Have you submitted a Drainage Statement (Indicate if yes)",null,null,null,null,null,null,null,null,null,null,true]
[null,null,"See Policy LP 21 and Draft London Plan SL 13"]
[null,"c.","Please give the change in area of permeable surfacing which will result from your development proposal:",null,null,null,null,null,null,{"$f":"-176+70","v":-106},null,null,"sqm"]
[null,null,"Please provide details of the permeable surfacing below",null,null,null,null,"please represent a loss in permeable area as a negative number"]
[null,null,null,null,null,null,null,null,null,null,null,"Subtotal",{"$f":"SUM(Q182:Q192)","v":4}]
[null,"Please give any additional relevant comments to the Flooding and Drainage Section below"]
[]
[]
[]
[]
[]
[null,6,"IMPROVING RESOURCE EFFICIENCY"]
[null,"6.1 Reduce waste generated and amount disposed of by landfill though increasing level of re-use and recycling"]
[null,"a.","Will demolition be required on your site prior to construction? [Points will only be awarded if 10% or greater of demolition waste is reused/recycled]",null,null,null,null,null,null,null,null,1,null,null,true,null,{"$f":"IF(O206=TRUE,IF(L208+L210>=10,L206,0),0)","v":0}]
[]
[null,null,null,"If so, what percentage of demolition waste will be reused in the new development?",null,null,null,null,null,0,null,null,"%"]
[]
[null,null,null,"What percentage of demolition waste will be recycled?",null,null,null,null,null,95,null,null,"%"]
[]
[]
[null,"b.","Does your site have any contaminated land?",null,null,null,null,null,null,null,null,1,null,null,false,null,{"$f":"IF(O213=TRUE,L213)","v":false}]
[null,null,null,"Have you submitted an assessment of the site contamination?",null,null,null,null,null,null,null,2,null,null,false,null,{"$f":"IF(O214=TRUE,L214)","v":false}]
[null,null,null,"Are plans in place to remediate the contamination?",null,null,null,null,null,null,null,2,null,null,false,null,{"$f":"IF(O215=TRUE,L215)","v":false}]
[null,null,null,"Have you submitted a remediation plan?",null,null,null,null,null,null,null,1,null,null,false,null,{"$f":"IF(O216=TRUE,L216)","v":false}]
[null,null,null,"Are plans in place to include composting on site?",null,null,null,null,null,null,null,1,null,null,false,null,{"$f":"IF(O217=TRUE,L217)","v":false}]
[]
[null,"c. ","Will a waste management plan and facilities be in place in line with Policy LP24",null,null,null,null,null,null,"N/a"]
[]
[null,"6.2 Reducing levels of water waste "]
[null,"a.","Will the following measures of water conservation be incorporated into the development? (Please tick all that apply):"]
[null,null,null,"Fitting of water efficient taps, shower heads etc",null,null,null,null,null,null,null,1,null,null,true,null,{"$f":"IF(O223=TRUE,L223)","v":1}]
[null,null,null,"Use of water efficient A or B rated appliances",null,null,null,null,null,null,null,1,null,null,true,null,{"$f":"IF(O224=TRUE,L224)","v":1}]
[null,null,null,"Rainwater harvesting for internal use",null,null,null,null,null,null,null,4,null,null,false,null,{"$f":"IF(O225=TRUE,L225)","v":false}]
[null,null,null,"Greywater systems",null,null,null,null,null,null,null,4,null,null,false,null,{"$f":"IF(O226=TRUE,L226)","v":false}]
[null,null,null,"Fit a water meter",null,null,null,null,null,null,null,1,null,null,true,null,{"$f":"IF(O227=TRUE,L227)","v":1}]
[]
[null,null,null,null,null,null,null,null,null,null,null,"Subtotal",{"$f":"SUM(Q206:Q228)","v":3}]
[null,"Please give any additional relevant comments to the Improving Resource Efficiency Section below"]
[null,"Rainwater butt connected to downpipe will be provided for external irrigation. "]
[]
[]
[]
[]
[]
[null,7,"ACCESSIBILITY"]
[null,7.1,"Ensure flexible adaptable and long-term use of structures "]
[null,"a. ","If the development is residential, will it meet the requirements of the nationally described space standard for internal space and layout?",null,null,null,null,null,null,null,null,1,null,null,true,null,{"$f":"IF(O239=TRUE,L239)","v":1}]
[null,null,null,"If the standards are not met, in the space below, please provide details of the functionality of the internal space and layout"]
[null,null,null,null,null,null,null,null,null,null,null,null," "]
[]
[]
[]
[null,"AND"]
[null,"b.","If the development is residential, will it meet Building Regulation Requirement M4 (2) ‘accessible and adaptable dwellings’?",null,null,null,null,null,null,null,null,2,null,null,false,null,{"$f":"IF(O246=TRUE,L246)","v":false}]
[null,null,null,"If this is not met, in the space below, please provide details of any accessibility measures included in the development."]
[null,null,null,null,null,null,"The proposed scheme has been designed to provide M4 (1) for access into the dwelling and M4 (2) within the dwelling."]
[]
[]
[]
[]
[null,null,null,"For major residential developments, are 10% or more of the units in the development to Building Regulation Requirement M4 (3) ‘wheelchair user dwellings’? ",null,null,null,null,null,null,null,1,null,null,"Please Select:",null,{"$f":"IF(O253=TRUE,L253)","v":false}]
[]
[null,"OR"]
[null,"c. ","If the development is non-residential, does it comply with requirements included in Richmond's Local Plan LP1, LP28.B, LP30 & LP45",null,null,null,null,null,null,null,null,2,null,null,"Please Select:",null,{"$f":"IF(O256=TRUE,L256)","v":false}]
[null,null,null,"Please provide details of the accessibility measures specified in the Local Plan that will be included in the development"]
[]
[]
[]
[]
[]
[]
[null,null,null,null,null,null,null,null,null,null,null,"Subtotal",{"$f":"SUM(Q239:Q263)","v":1}]
[null,"Please give any additional relevant comments to the Design Standards and Accessibility Section below"]
[null,"In order to mitigate against flood risk the dwelling is elevated with the ground floor accessed via external steps.  The external steps will comply with Approved Document K / M / B in terms of accessibility and fire safety.\n\nThe home will be built to achieve the London Plan and London Borough design standards, Part M4 (2) within the dwelling and Part M4(1) standards of accessibility for upper level units."]
[]
[]
[]
[]
[]
[]
["LBRUT Sustainable Construction Checklist- Scoring Matrix for New Construction",null,null,null,null,"(Non-Residential and domestic refurb)",null,null,null,null,null,"TOTAL",{"$f":"M53+M108+M138+M173+M197+M229+M264+M62","v":52}]
[null,null,"Score","Rating","Significance"]
[null,null,"84 or more","A+","Project strives to achieve highest standard in energy efficient sustainable development"]
[null,null,"75-83","A","Makes a major contribution towards achieving sustainable development in Richmond"]
[null,null,"56-74","B","Helps to significantly improve the Borough's stock of sustainable developments"]
[null,null,"40-55","C","Minimal effort to increase sustainability beyond general compliance"]
[null,null,"39 or less","FAIL","Does not comply with SPD Policy "]
[]
["LBRUT Sustainable Construction Checklist- Scoring Matrix for New Construction",null,null,null,null,"Residential new-build"]
[null,null,"Score","Rating","Significance"]
[null,null,"85 or more","A++","Project strives to achieve highest standard in energy efficient sustainable development"]
[null,null,"68-84","A+","Project strives to achieve higher standard in energy efficient sustainable development"]
[null,null,"59-67","A","Makes a major contribution towards achieving sustainable development in Richmond"]
[null,null,"39-58","B","Helps to significantly improve the Borough's stock of sustainable developments"]
[null,null,"24-38","C","Minimal effort to increase sustainability beyond general compliance"]
[null,null,"23 or less","FAIL","Does not comply with SPD Policy "]
[]
[]
[]
["Authorisation:"]
[null,"I herewith declare that I have filled in this form to the best of my knowledge"]
[]
[null,null,null,null,null,"Signature",null,null,null,"Date"]